[Event "Reykjavik Open 2022"]
[Site "Reykjavik"]
[Date "2022.04.09"]
[Round "5.5"]
[White "Clarke, Brandon G I"]
[Black "Adhiban, B.."]
[Result "1/2-1/2"]
[ECO "B12"]
[WhiteElo "2430"]
[BlackElo "2648"]
[Annotator "TA"]
[PlyCount "67"]
[EventDate "2022.04.06"]
[EventCountry "ISL"]
[SourceTitle "playchess.com"]
[Source "ChessBase"]
[SourceQuality "1"]
[TimeControl "40/5400+30:1800+30"]

{[%evp 9,67,4,24,15,22,17,34,32,25,14,23,22,10,0,0,0,0,0,11,0,0,-52,-33,-77,-75,-85,-96,-86,-29,-114,-108,-134,-130,-208,-187,-296,-293,-293,-293,-295,-206,-170,-185,-301,-307,-309,-284,-299,-285,-301,-264,-283,-303,-299,-288,-265,-269,-1359,-477,-447]} 1. e4 {[%emt 0:00:12]} c6 {[%emt 0:00:53]} 2. d4 {[%emt 0:00:19]} d5 {[%emt 0:00:04]} 3. e5 {[%emt 0:00:10]} c5 {[%emt 0:00:06]} 4. dxc5 {[%emt 0:00:07]} e6 {[%emt 0:00:06]} 5. a3 {[%emt 0:00:06]} Bxc5 {[%emt 0:00:05]} 6. Nf3 {[%emt 0:00:07] B12: Caro-Kann: Advance Variation.} a6 {[%emt 0:01:10]} 7. Bd3 {[%emt 0:00:29]} Nc6 {[%emt 0:00:44]} 8. O-O {[%emt 0:00:12] White is slightly better.} Nge7 {[%emt 0:00:07]} 9. b4 {[%emt 0:00:19]} Ba7 {[%emt 0:00:16]} 10. Bb2 {[%emt 0:00:13]} Ng6 {[%emt 0:00:35]} 11. g3 {[%emt 0:11:16]} (11. Nbd2 {feels hotter.} Nf4 12. Nb3 f6 13. Qd2) 11... O-O {[%emt 0:00:11]} 12. Nbd2 {[%emt 0:00:56] [#]} b5 $146 {[%emt 0:00:09] Inhibits c4.} ({Predecessor:} 12... Qc7 13. Qe2 Bd7 14. c4 Rae8 15. Rac1 Qb8 16. b5 Na5 17. Ng5 Nxc4 18. Nxc4 dxc4 19. Nxh7 cxd3 20. Qh5 Rc8 21. Nf6+ gxf6 22. exf6 Bxf2+ 23. Kxf2 Qa7+ 24. Kf3 {1-0 (24) Sochacki,C (2490)-Sai Agni,J (2322) Barcelona 2021}) 13. Nb3 {[%emt 0:05:56]} f6 {[%emt 0:05:40][%cal Rg6e5]} 14. exf6 {[%emt 0:02:21]} gxf6 {[%emt 0:00:48]} 15. Nbd4 {[%emt 0:04:32]} (15. Nfd2 $11) 15... Nce7 $1 $15 {[%emt 0:10:07] ...e5 is the strong threat.} 16. Be2 {[%emt 0:10:58]} e5 {[%emt 0:02:08]} 17. Nb3 {[%emt 0:00:06]} Bh3 {[%emt 0:09:30]} 18. Re1 {[%emt 0:00:40]} Rc8 {[%emt 0:00:57]} (18... Qb6 $17 19. Nc5 Qd6) 19. Qd2 {[%emt 0:03:41] White is on the road to losing.} (19. a4 $1 $11) 19... Qd7 $17 {[%emt 0:07:08]} (19... Qb6 20. Nc5 $15) 20. Bd1 {[%emt 0:10:10]} Bg4 {[%emt 0:01:48]} 21. Kg2 {[%emt 0:02:49]} (21. Nc5 $17 {was called for.} Bxc5 22. bxc5) 21... Qf5 $36 {[%emt 0:10:26][%mdl 2048] aiming for ...Bxf3+. Black is in control.} 22. c3 {[%emt 0:01:43]} (22. Nc5 $142) 22... Kh8 {[%emt 0:01:12] Hoping for ...Bxf3+.} (22... Qh5 23. Ng1 $17) (22... Bxf3+ 23. Bxf3 e4 24. Bd1 $17) 23. Ng1 {[%emt 0:01:40] [#]} Nh4+ {[%emt 0:10:14][%mdl 512]} 24. Kh1 {[%emt 0:14:41]} ({Avoid the trap} 24. gxh4 $2 Rg8 25. Bxg4 Qxg4+ 26. Kf1 Qxg1+ 27. Ke2 Qg4+ 28. Kd3 Qf5+ 29. Ke2 Bxf2 $19) 24... Nf3 {[%emt 0:11:18]} 25. Nxf3 {[%emt 0:00:55]} Bxf3+ {[%emt 0:00:03]} 26. Bxf3 {[%emt 0:07:09]} (26. Kg1 $142) 26... Qxf3+ {[%emt 0:00:04]} 27. Kg1 {[%emt 0:00:05]} Rg8 {[%emt 0:01:40] Threatens to win with ...Nf5.} 28. Nd4 {[%emt 0:03:50]} Bxd4 {[%emt 0:00:51]} ({Stronger than} 28... exd4 29. Rxe7 Rce8 30. Rxe8 (30. Rxa7 Re2 $17) 30... Rxe8 31. Re1 Rxe1+ 32. Qxe1 $11) 29. cxd4 {[%emt 0:00:03]} Ng6 {[%emt 0:18:40][%cal Be7g6,Bg6h4,Bh4f5][%mdl 32]} 30. Re3 {[%emt 0:03:50] [#]} Nh4 {[%emt 0:01:25][%csl Gh4][%cal Rf3g2]} 31. Kf1 {[%emt 0:00:07]} Qg2+ {[%emt 0:00:05]} 32. Ke2 {[%emt 0:00:31]} Nf5 {[%emt 0:00:09]} 33. Rf3 {[%emt 0:09:47] [#]} (33. dxe5 d4 34. Rf3) 33... exd4 $1 {[%emt 0:01:10]} 34. Rf4 {[%emt 0:02:07][%mdl 32768] Weighted Error Value: White=0.47/Black=0.23 (precise) . An unexpected result.} 1/2-1/2

[Event "Reykjavik Open 2022"]
[Site "Reykjavik"]
[Date "2022.04.09"]
[Round "5.6"]
[White "Sadhwani, Raunak"]
[Black "Williams, Simon K"]
[Result "0-1"]
[ECO "A90"]
[WhiteElo "2616"]
[BlackElo "2464"]
[Annotator "TA"]
[PlyCount "68"]
[EventDate "2022.04.06"]
[EventCountry "ISL"]
[SourceTitle "playchess.com"]
[Source "ChessBase"]
[SourceQuality "1"]
[TimeControl "40/5400+30:1800+30"]

{[%evp 21,68,16,22,19,20,18,28,23,29,19,21,22,22,21,18,16,19,19,20,14,11,9,5,0,0,0,0,0,0,0,17,12,39,0,111,53,163,166,171,149,243,-1587,-1542,-1602,-1516,-29986,-29987,-29990,-29991]} 1. d4 {[%emt 0:00:02]} e6 {[%emt 0:01:28]} 2. c4 {[%emt 0:00:17]} f5 {[%emt 0:02:07]} 3. g3 {[%emt 0:00:28]} Nf6 {[%emt 0:00:25]} 4. Bg2 {[%emt 0:00:12]} d5 {[%emt 0:01:17]} 5. Nf3 {[%emt 0:00:38]} c6 {[%emt 0:00:25]} 6. O-O {[%emt 0:00:26]} Bd6 {[%emt 0:00:13]} 7. b3 {[%emt 0:00:07]} Qe7 {[%emt 0:00:31]} 8. a4 {[%emt 0:00:37]} a5 {[%emt 0:01:14]} 9. Ba3 {[%emt 0:00:18]} Bxa3 {[%emt 0:00:21]} 10. Nxa3 {[%emt 0:00:07][%cal Bb1a3,Ba3c2,Bc2e1,Be1d3][%mdl 32]} O-O {[%emt 0:03:24]} 11. Nc2 {[%emt 0:01:09]} Nbd7 {[%emt 0:05:21]} 12. Nce1 {[%emt 0:03:20] A90: Dutch Defence: Miscellaneous and Modern Stonewall (with ...Bd6).} b6 {[%emt 0:00:17]} 13. Nd3 {[%emt 0:02:09]} Bb7 {[%emt 0:00:23]} 14. Rc1 {[%emt 0:06:27] White has an edge.} c5 {[%emt 0:03:31]} 15. e3 {[%emt 0:04:38]} Rac8 {[%emt 0:03:18] [#]} 16. Re1 $146 {[%emt 0:14:13]} ({Predecessor:} 16. Qc2 Ne4 17. Nfe5 Nxe5 18. Nxe5 Nd6 19. Rfd1 Rfd8 20. Qb2 Nf7 21. Nf3 Qf6 22. h4 {½-½ (65) Sergeev,V (2397)-Shishigin,D (2231) Tiumen 2012}) 16... Ne4 {[%emt 0:13:16]} 17. h4 {[%emt 0:02:37]} Rfd8 {[%emt 0:06:37]} 18. Qe2 {[%emt 0:03:27]} Ndf6 {[%emt 0:05:06]} 19. Nde5 {[%emt 0:02:59]} Rc7 {[%emt 0:08:20]} 20. Qb2 {[%emt 0:02:03]} Qe8 {[%emt 0:02:38]} 21. Rc2 {[%emt 0:02:54]} h6 {[%emt 0:01:56]} 22. Rec1 {[%emt 0:01:58]} g5 {[%emt 0:00:54]} 23. cxd5 {[%emt 0:08:54]} Bxd5 {[%emt 0:05:37]} 24. Nc4 {[%emt 0:04:38]} cxd4 {[%emt 0:05:56]} 25. exd4 {[%emt 0:00:49]} Rb7 {[%emt 0:08:05]} 26. Nce5 {[%emt 0:04:33]} f4 {[%emt 0:03:47]} 27. g4 {[%emt 0:09:57]} h5 {[%emt 0:02:36]} (27... b5 $11 {remains equal.} 28. axb5 Rxb5) 28. Nxg5 {[%emt 0:06:29]} ({Of course not} 28. hxg5 $6 Nxg4 29. Rc7 (29. g6 Nd6 $11) 29... Nexf2 $11) (28. Rc7 $1 $16 gxh4 29. Rxb7 (29. Nxh4 hxg4 30. Rxb7 Bxb7 $11) (29. g5 Ng4 $16) 29... Bxb7 30. g5 (30. Nxh4 hxg4 31. Rc7 Qh5 $11)) 28... hxg4 {[%emt 0:01:24]} ({Black should try} 28... Nxg5 $14 29. hxg5 Nxg4) 29. Rc7 $18 {[%emt 0:10:46]} f3 {[%emt 0:02:59] Threatens to win with ...Nxg5.} 30. Ngf7 {[%emt 0:05:04]} fxg2 {[%emt 0:01:08]} (30... Rxc7 $2 31. Rxc7 Nd7 32. Qc1 $1 (32. Nxd8 Nxe5 33. dxe5 Qxd8 $16) 32... Nxe5 33. dxe5 $18) (30... Nd7 $16) 31. Nxd8 $4 {[%emt 0:00:37][%mdl 8192]} (31. Rxb7 $18 Bxb7 32. Rc7) 31... Rxc7 $19 {[%emt 0:00:55]} (31... Qxd8 $2 32. Rc8 Rb8 33. Rxd8+ $18) 32. Rxc7 {[%emt 0:00:05] [#]} Ng5 $1 {[%emt 0:00:19][%mdl 512] ( -> ...Nh3+)} 33. f3 {[%emt 0:03:14] [#]} (33. Qc1 Nh3+) 33... gxf3 $1 {[%emt 0:00:51]} 34. hxg5 {[%emt 0:00:39] [#]} (34. Qb1 Nh3+) 34... Qh5 $1 {[%emt 0:00:18] Weighted Error Value: White=0.66/Black=0.18 (very precise)} 0-1

[Event "Reykjavik Open 2022"]
[Site "Reykjavik"]
[Date "2022.04.09"]
[Round "5.7"]
[White "Gupta, Abhijeet"]
[Black "Sukandar, Irine Kharisma"]
[Result "1/2-1/2"]
[ECO "E06"]
[WhiteElo "2628"]
[BlackElo "2378"]
[Annotator "TA"]
[PlyCount "108"]
[EventDate "2022.04.06"]
[EventCountry "ISL"]
[SourceTitle "playchess.com"]
[Source "ChessBase"]
[SourceQuality "1"]
[TimeControl "40/5400+30:1800+30"]

{[%evp 21,108,12,13,4,11,8,22,11,29,0,0,0,12,0,36,39,29,43,35,0,28,32,25,0,0,0,12,0,0,0,21,16,24,22,16,21,37,25,24,12,18,12,18,0,0,0,19,15,26,13,42,35,43,27,61,74,60,60,145,118,120,139,170,171,333,74,82,102,133,0,0,0,0,0,0,0,0,0,0,0,0,-118,0,0,0,0,0,0,0]} 1. d4 {[%emt 0:00:16]} Nf6 {[%emt 0:00:28]} 2. c4 {[%emt 0:00:10]} e6 {[%emt 0:00:30]} 3. g3 {[%emt 0:00:15]} d5 {[%emt 0:01:33]} 4. Bg2 {[%emt 0:00:07]} Be7 {[%emt 0:02:42]} 5. Nf3 {[%emt 0:00:37]} O-O {[%emt 0:00:42]} 6. Nc3 {[%emt 0:00:10]} dxc4 {[%emt 0:03:53]} 7. Ne5 {[%emt 0:00:18]} Nc6 {[%emt 0:02:51]} 8. Bxc6 {[%emt 0:00:10]} bxc6 {[%emt 0:00:04]} 9. Nxc6 {[%emt 0:00:05]} Qe8 {[%emt 0:00:04]} 10. Nxe7+ {[%emt 0:00:06]} Qxe7 {[%emt 0:00:04]} 11. Qa4 {[%emt 0:00:07]} c5 {[%emt 0:00:06]} 12. dxc5 $1 {[%emt 0:00:08] 12.dxc5 is better than 12.Qxc4. E06: Closed Catalan: Early deviations.} Qxc5 {[%emt 0:00:07]} 13. Be3 {[%emt 0:00:07][%cal Bc1e3,Be3d4,Bd4c3][%mdl 32]} Qc7 {[%emt 0:00:27]} 14. f3 {[%emt 0:01:00]} Bb7 {[%emt 0:16:32]} 15. O-O-O {[%emt 0:15:05]} Nd5 {[%emt 0:06:23]} 16. Bd4 {[%emt 0:02:02]} a5 {[%emt 0:01:34]} 17. Nxd5 {[%emt 0:00:42] [#]} Bxd5 $146 {[%emt 0:02:54]} ({Predecessor:} 17... exd5 18. Kb1 Bc6 19. Qc2 a4 20. a3 Rab8 21. Bc3 Rfe8 22. Rhe1 Re3 23. Ka2 Qe7 {½-½ (32) Salimova,N (2372)-Bilych,O (2309) Primorsko 2020}) 18. Bc3 {[%emt 0:02:29]} Qc5 {[%emt 0:03:07]} 19. Rd2 {[%emt 0:01:19]} Bc6 {[%emt 0:06:03]} 20. Qc2 {[%emt 0:04:00]} Rfd8 {[%emt 0:10:25]} 21. Kb1 {[%emt 0:04:12]} Rd5 {[%emt 0:06:39]} 22. Rxd5 {[%emt 0:01:30]} (22. e4 {seems wilder.} Rxd2 23. Qxd2 f5 24. Qg5) 22... exd5 {[%emt 0:01:20]} 23. Qd2 {[%emt 0:01:24] Prevents d4.} Re8 {[%emt 0:04:23]} 24. Bd4 {[%emt 0:10:29]} Qb4 {[%emt 0:02:12]} 25. Qg5 {[%emt 0:01:21][%csl Gd4][%cal Rg5g7]} f6 {[%emt 0:09:07]} 26. Bxf6 {[%emt 0:15:43][%csl Gf6][%cal Rg5g7]} Qf8 {[%emt 0:00:10]} 27. Be5 {[%emt 0:10:18]} h6 {[%emt 0:00:26]} 28. Qf4 {[%emt 0:00:04]} Qe7 {[%emt 0:00:31]} 29. Bc3 {[%emt 0:00:06]} Qxe2 {[%emt 0:02:13]} 30. Qd4 {[%emt 0:08:35][%csl Gc3][%cal Rd4g7]} Qd3+ {[%emt 0:00:13]} 31. Qxd3 {[%emt 0:00:16]} cxd3 {[%emt 0:00:02]} 32. Bxa5 $11 {[%emt 0:05:31][%mdl 4096] Endgame KRB-KRB} d4 {[%emt 0:01:01]} 33. Re1 {[%emt 0:00:56]} Ra8 {[%emt 0:01:18]} 34. Bd2 {[%emt 0:02:21]} Bxf3 {[%emt 0:00:09]} 35. b3 {[%emt 0:00:22][%cal Bb2b3,Bb3b4,Bb4b5][%mdl 32]} Kh7 {[%emt 0:09:30]} 36. Rf1 {[%emt 0:02:12]} Be2 {[%emt 0:01:40]} 37. Rc1 {[%emt 0:00:18]} Kg6 {[%emt 0:00:27]} 38. a4 {[%emt 0:00:54][%cal Ba2a4,Ba4a5,Ba5a6][%mdl 32]} Kf5 {[%emt 0:00:46]} 39. a5 {[%emt 0:00:30]} Ke4 {[%emt 0:06:06]} ({Black should play} 39... Rb8 $14) 40. b4 $1 $16 {[%emt 0:00:00]} Bg4 {[%emt 0:00:00]} 41. b5 {[%emt 0:04:32]} Rc8 {[%emt 0:10:29]} 42. Re1+ $1 {[%emt 0:02:02]} Kf3 $2 {[%emt 0:06:54]} (42... Kd5 {might work better.}) 43. Re5 $2 {[%emt 0:11:49]} (43. a6 $1 $18 {is the precise move to win.}) 43... Rc2 {[%emt 0:02:22] [#]} 44. a6 $1 {[%emt 0:04:49] Threatens to win with a7.} Bc8 {[%emt 0:02:07] [#]} (44... Rxd2 $2 45. a7 Kg2 46. a8=Q+ $18) (44... Kg2 45. Be1) 45. Re8 {[%emt 0:07:11]} Rxd2 $11 {[%emt 0:01:20]} 46. Rxc8 {[%emt 0:00:03] a7 is the strong threat. KR-KR} Rd1+ {[%emt 0:00:16]} 47. Kb2 $1 {[%emt 0:00:04]} Ra1 $1 {[%emt 0:00:20]} 48. Rf8+ {[%emt 0:05:14]} (48. Kxa1 $2 d2 49. Kb2 (49. Rf8+ $2 Kg2 $19) 49... d1=Q $19) 48... Ke2 $1 {[%emt 0:03:27] ( -> ...d2)} 49. Re8+ {[%emt 0:03:22]} (49. Kxa1 $2 d2 50. Re8+ Kd3 $19) 49... Kf3 {[%emt 0:02:38] And now ...d2 would win.} 50. Rf8+ {[%emt 0:02:09]} (50. Kxa1 $2 d2 51. Re7 (51. Rf8+ $2 Ke2 $19) 51... d1=Q+ $19) 50... Ke2 $1 {[%emt 0:00:18]} 51. Rf4 {[%emt 0:03:34]} (51. Kxa1 $2 d2 52. Re8+ Kd3 $19) (51. Re8+ $11 {was the only way to keep the balance.} Kf3 52. Rf8+ (52. Kxa1 $2 d2 $19)) 51... Ra4 {[%emt 0:02:36]} ({Reject} 51... d2 $6 52. Rxd4 Ra4 53. Rd8 $11 (53. Rxa4 d1=Q $17)) ({Better is} 51... Ra5 $17 52. Re4+ (52. Rxd4 $2 Rxb5+ 53. Kc3 Rc5+ 54. Kb4 Rc7 $19) 52... Kd2 53. Rxd4 Rxb5+ 54. Ka3 Rb1) 52. Re4+ {[%emt 0:00:15] The position is equal.} Kf3 {[%emt 0:00:55]} 53. Re8 {[%emt 0:00:17] Black must now prevent Kc1.} Ra1 {[%emt 0:00:28] Hoping for ...d2.} 54. Rf8+ {[%emt 0:02:16]} (54. Kxa1 $2 {is the wrong capture.} d2 55. Re7 (55. Rf8+ $2 Ke2 $19) 55... d1=Q+ $19) 54... Ke2 $1 {[%emt 0:00:06] Weighted Error Value: White=0.22 (precise) /Black=0.15 (very precise)} 1/2-1/2

[Event "Reykjavik Open 2022"]
[Site "Reykjavik"]
[Date "2022.04.09"]
[Round "5.8"]
[White "Martin, Julian"]
[Black "Warmerdam, Max"]
[Result "0-1"]
[ECO "B70"]
[WhiteElo "2388"]
[BlackElo "2607"]
[Annotator "TA"]
[PlyCount "76"]
[EventDate "2022.04.06"]
[EventCountry "ISL"]
[SourceTitle "playchess.com"]
[Source "ChessBase"]
[SourceQuality "1"]
[TimeControl "40/5400+30:1800+30"]

{[%evp 17,76,-14,0,0,0,0,0,0,0,0,0,-2,-10,-12,0,-11,-8,-12,0,0,8,0,0,0,0,0,0,0,0,0,41,10,26,0,45,17,22,-2,72,85,70,33,45,0,43,60,101,0,0,0,0,-156,-126,-182,-137,-394,-345,-400,-435,-366,-224]} 1. e4 {[%emt 0:06:02]} c5 {[%emt 0:00:03]} 2. Nf3 {[%emt 0:00:15]} d6 {[%emt 0:00:06]} 3. d4 {[%emt 0:00:09]} cxd4 {[%emt 0:00:06]} 4. Nxd4 {[%emt 0:00:05]} Nf6 {[%emt 0:00:05]} 5. Nc3 {[%emt 0:00:04]} Nc6 {[%emt 0:00:12]} 6. g3 {[%emt 0:00:07]} g6 {[%emt 0:00:32]} 7. Nde2 {[%emt 0:00:05]} Bg7 {[%emt 0:00:15]} 8. Bg2 {[%emt 0:00:04]} Bd7 {[%emt 0:00:10]} 9. O-O {[%emt 0:01:43]} Qc8 {[%emt 0:00:46]} 10. Nd5 {[%emt 0:06:23] B70: Sicilian Dragon: 6 g3 and 6 Be2 (without a later Be3).} h5 $5 {[%emt 0:02:20][%mdl 4] A promising side line.} 11. h4 {[%emt 0:10:03]} Nxd5 {[%emt 0:04:00]} 12. exd5 {[%emt 0:00:31] The position is equal.} Ne5 {[%emt 0:00:10]} 13. c3 {[%emt 0:20:57]} O-O {[%emt 0:14:20] [#]} 14. Bg5 $146 {[%emt 0:14:58]} ({Predecessor:} 14. Nd4 Bg4 15. Qc2 Bh3 16. Bg5 Re8 17. Rfe1 Bxg2 18. Kxg2 Qc5 19. Qb3 a6 20. Rad1 {½-½ (37) Sorsa,N (2270)-Korhonen,P (2145) Naantali 1997}) 14... Bg4 {[%emt 0:08:21]} 15. f3 {[%emt 0:06:24]} (15. Bxe7 Re8 16. Bxd6 Bxe2 17. Qxe2 Nc4 $17) 15... Bh3 {[%emt 0:08:49]} 16. b3 {[%emt 0:08:26]} Qc5+ {[%emt 0:06:54]} 17. Kh2 {[%emt 0:03:32]} Bf5 {[%emt 0:10:23]} 18. Qd2 {[%emt 0:01:23]} Rfe8 {[%emt 0:00:53]} 19. Rad1 {[%emt 0:06:16]} b5 {[%emt 0:01:51]} 20. Be3 {[%emt 0:02:18]} Qc7 {[%emt 0:00:04]} 21. Nd4 {[%emt 0:01:07]} Bd7 {[%emt 0:00:17]} 22. Bg1 {[%emt 0:00:51]} a5 {[%emt 0:10:34]} 23. Kh1 {[%emt 0:01:05]} f5 {[%emt 0:00:30]} 24. f4 {[%emt 0:01:57]} Ng4 {[%emt 0:00:05]} 25. Rfe1 {[%emt 0:01:25][%cal Oc3c4]} Bf6 {[%emt 0:02:11]} 26. Rc1 $36 {[%emt 0:00:44][%mdl 2048] White has the initiative.} a4 {[%emt 0:06:53]} 27. c4 {[%emt 0:00:34]} bxc4 {[%emt 0:00:30]} (27... axb3 $11 {remains equal.} 28. axb3 (28. cxb5 Qb7 $11) 28... bxc4) 28. Rxc4 $16 {[%emt 0:01:10]} Qb7 {[%emt 0:00:04]} 29. b4 {[%emt 0:03:25]} (29. Rb4 $5 {[%cal Rb4b7]} Qa6 30. bxa4 $14) 29... a3 {[%emt 0:00:31]} 30. Rec1 {[%emt 0:01:06] [#] Strongly threatening Rc7.} Rac8 {[%emt 0:01:44] Against Rc7} (30... Bxd4 $5 31. Rc7 (31. Bxd4 Rac8 $11) (31. Rxd4 Rec8 $11) (31. Qxd4 Rac8 $11) 31... Bxg1 32. Rxb7 Be3 $11) 31. Rxc8 {[%emt 0:00:13]} Rxc8 {[%emt 0:00:25]} 32. Rxc8+ {[%emt 0:00:34]} (32. Nc6 $16) 32... Qxc8 $11 {[%emt 0:00:05]} 33. Nc6 {[%emt 0:00:24] aiming for b5.} Qa6 {[%emt 0:02:10]} 34. Qc2 {[%emt 0:01:11] [#] Against Qc4} (34. Nb8 $1 $11 Qb7 35. Nxd7 Qxd7 36. Bf1) 34... Kh7 $1 $17 {[%emt 0:03:29]} 35. Nb8 {[%emt 0:01:13]} (35. Qb3 $17 {was worth a try.} Qe2 36. Qxa3) 35... Qa4 {[%emt 0:00:33]} 36. Qe2 {[%emt 0:00:46][%mdl 8192]} (36. Qxa4 $17 Bxa4 37. Nc6) 36... Qb5 $19 {[%emt 0:02:19]} 37. Qxb5 {[%emt 0:00:53]} Bxb5 {[%emt 0:00:02]} 38. Nc6 {[%emt 0:00:30]} Bc4 {[%emt 0:00:01] Weighted Error Value: White=0.32/Black=0.13 (very precise)} 0-1

[Event "Reykjavik Open 2022"]
[Site "Reykjavik"]
[Date "2022.04.09"]
[Round "5.9"]
[White "Andersen, Mads"]
[Black "Soham Das"]
[Result "1-0"]
[ECO "B22"]
[WhiteElo "2570"]
[BlackElo "2330"]
[Annotator "TA"]
[PlyCount "77"]
[EventDate "2022.04.06"]
[EventCountry "ISL"]
[SourceTitle "playchess.com"]
[Source "ChessBase"]
[SourceQuality "1"]
[TimeControl "40/5400+30:1800+30"]

{[%evp 18,77,58,39,70,64,119,120,120,112,114,54,68,46,70,81,86,61,70,66,64,71,78,68,68,65,75,69,87,82,232,215,262,259,259,245,372,318,408,400,409,383,443,441,425,392,439,472,683,681,669,653,889,637,628,603,1145,1106,1097,1096,879,775]} 1. e4 {[%emt 0:00:32]} c5 {[%emt 0:01:49]} 2. c3 {[%emt 0:00:15]} g6 {[%emt 0:06:50]} 3. d4 {[%emt 0:00:34]} cxd4 {[%emt 0:00:03]} 4. cxd4 {[%emt 0:00:11]} d5 {[%emt 0:00:02]} 5. e5 {[%emt 0:00:20]} Bg7 {[%emt 0:02:22]} 6. Nf3 {[%emt 0:04:50]} Nc6 {[%emt 0:04:04]} 7. Bb5 {[%emt 0:02:56]} Nh6 {[%emt 0:05:33][%cal Bg8h6,Bh6f5,Bf5h4][%mdl 32]} 8. O-O {[%emt 0:01:09]} O-O {[%emt 0:16:32]} 9. h3 {[%emt 0:01:17]} f6 {[%emt 0:10:48]} 10. Nc3 {[%emt 0:01:28]} Nf5 {[%emt 0:16:02][%cal Rf6e5] B22: Sicilian: 2 c3.} 11. Re1 {[%emt 0:12:58]} fxe5 {[%emt 0:06:50]} (11... e6 $14) 12. dxe5 $16 {[%emt 0:02:26]} e6 {[%emt 0:05:12] White is better.} 13. Bxc6 {[%emt 0:16:37]} bxc6 {[%emt 0:00:21]} 14. Na4 {[%emt 0:00:14]} (14. Bg5 $16 Qd7 15. Na4) 14... Nh4 $14 {[%emt 0:09:45] [#] White must now prevent ...Nxf3+.} 15. Nd4 {[%emt 0:01:40]} Nf5 {[%emt 0:06:40]} 16. b3 {[%emt 0:12:42]} Qe7 {[%emt 0:04:56] Inhibits Ba3.} 17. Nf3 {[%emt 0:17:08] [#] Pair of Knights!} ({Much worse is} 17. Nxc6 Qc7 18. Nb4 (18. Qc2 Bb7 $11) 18... Bxe5 19. Nxd5 Qb8 $14) 17... Nh4 $146 {[%emt 0:00:35]} ({Predecessor:} 17... Bd7 18. Bg5 Qf7 19. Nc5 h6 20. Bf6 Bc8 21. Bxg7 Kxg7 22. Qd2 a5 23. Rac1 Ba6 24. Nd4 Nxd4 25. Qxd4 Rfb8 {1-0 (44) Angarov,D (1933)-Zhuk,V (1959) Ulan-Ude 2013}) 18. Nxh4 {[%emt 0:01:27]} Qxh4 {[%emt 0:00:04]} 19. Qc2 {[%emt 0:00:11]} Rf5 {[%emt 0:00:59]} 20. Bb2 {[%emt 0:01:32]} Bd7 {[%emt 0:00:22]} 21. Nc5 {[%emt 0:00:47]} Qe7 {[%emt 0:00:10]} 22. Bd4 {[%emt 0:04:05]} Be8 {[%emt 0:00:44]} 23. b4 {[%emt 0:02:04] &Bianco is more active.} a5 {[%emt 0:00:33] [#] This costs Black the game.} (23... Bh6 $16 {keeps fighting.}) 24. bxa5 $1 $18 {[%emt 0:00:38]} Rxa5 {[%emt 0:00:05]} 25. Qc3 {[%emt 0:01:54]} Ra8 {[%emt 0:01:00]} 26. a4 {[%emt 0:00:16][%cal Ba2a4,Ba4a5,Ba5a6][%mdl 32]} g5 {[%emt 0:00:34]} (26... Bd7 {was called for.} 27. a5 Bc8) 27. Rab1 {[%emt 0:01:29] And now Rb7 would win.} Bg6 {[%emt 0:00:20]} 28. Rb7 {[%emt 0:00:15]} Qe8 {[%emt 0:00:05]} 29. a5 {[%emt 0:01:43]} Rf7 {[%emt 0:00:37]} 30. a6 {[%emt 0:01:50]} Bf8 {[%emt 0:00:38]} 31. Rxf7 {[%emt 0:01:19]} Kxf7 {[%emt 0:00:41]} 32. Ra1 {[%emt 0:00:24] White is clearly winning.} Be7 {[%emt 0:00:41]} (32... Bf5 $142 33. a7 Be7) 33. Qf3+ {[%emt 0:02:36]} Kg8 {[%emt 0:00:04]} 34. Nxe6 {[%emt 0:00:55] aiming for Nc7.} Be4 {[%emt 0:00:55]} 35. Qg3 {[%emt 0:01:45] Threatens to win with Nc7.} Qc8 {[%emt 0:00:33] Against Nc7} 36. Nc5 {[%emt 0:01:27]} Bg6 {[%emt 0:00:19]} 37. e6 {[%emt 0:01:06] Threatening mate with Qe5.} Bxc5 {[%emt 0:00:40]} 38. Bxc5 {[%emt 0:00:02]} Qxe6 {[%emt 0:00:09]} 39. a7 {[%emt 0:00:28] Weighted Error Value: White=0.16 (very precise) /Black=0.37} 1-0